[Event "Titled Tuesday Blitz March 28 Late 2023"]
[White "Becerra, Juan David"]
[Black "SalihEke"]
[WhiteFideId "4404998"]
[WhiteElo "2282"]
[BlackElo "2150"]
[Result "1-0"]
[Round "02"]
[TimeControl "180+2"]
[Date "2023.03.28"]
[WhiteClock "0:00:12"]
[BlackClock "0:00:24"]

1. e4 {[%clk 0:00:34]}  e6 {[%clk 0:02:54]} 2. d4 {[%clk 0:00:33]}  d5 {[%clk 0:02:55]} 3. Nc3 {[%clk 0:00:33]}  Nf6 {[%clk 0:02:33]} 4. Bg5 {[%clk 0:00:32]}  Be7 {[%clk 0:02:32]} 5. e5 {[%clk 0:00:32]}  Nfd7 {[%clk 0:02:28]} 6. Bxe7 {[%clk 0:00:33]}  Qxe7 {[%clk 0:02:29]} 7. f4 {[%clk 0:00:34]}  O-O {[%clk 0:02:21]} 8. Nf3 {[%clk 0:00:34]}  c5 {[%clk 0:02:21]} 9. dxc5 {[%clk 0:00:34]}  Nxc5 {[%clk 0:02:21]} 10. Bd3 {[%clk 0:00:34]}  Nxd3+ {[%clk 0:02:19]} 11. Qxd3 {[%clk 0:00:34]}  Nc6 {[%clk 0:02:19]} 12. O-O {[%clk 0:00:33]}  b6 {[%clk 0:02:18]} 13. Ne2 {[%clk 0:00:32]}  Qc5+ {[%clk 0:02:17]} 14. Ned4 {[%clk 0:00:31]}  a5 {[%clk 0:02:17]} 15. Rfd1 {[%clk 0:00:30]}  Ba6 {[%clk 0:02:17]} 16. Qd2 {[%clk 0:00:31]}  Rfc8 {[%clk 0:02:16]} 17. c3 {[%clk 0:00:31]}  b5 {[%clk 0:02:15]} 18. Kh1 {[%clk 0:00:26]}  b4 {[%clk 0:02:14]} 19. Nxc6 {[%clk 0:00:26]}  Rxc6 {[%clk 0:02:14]} 20. cxb4 {[%clk 0:00:19]}  Qxb4 {[%clk 0:02:14]} 21. Nd4 {[%clk 0:00:19]}  Rc4 {[%clk 0:02:11]} 22. Qxb4 {[%clk 0:00:18]}  axb4 {[%clk 0:02:10]} 23. Kg1 {[%clk 0:00:17]}  Rac8 {[%clk 0:02:09]} 24. Kf2 {[%clk 0:00:17]}  Kf8 {[%clk 0:02:08]} 25. Ke3 {[%clk 0:00:17]}  Ke7 {[%clk 0:02:09]} 26. Rd2 {[%clk 0:00:17]}  Rc1 {[%clk 0:02:08]} 27. Rd1 {[%clk 0:00:16]}  Rxa1 {[%clk 0:02:07]} 28. Rxa1 {[%clk 0:00:16]}  f6 {[%clk 0:02:07]} 29. exf6+ {[%clk 0:00:14]}  gxf6 {[%clk 0:02:08]} 30. Rd1 {[%clk 0:00:13]}  Kd6 {[%clk 0:02:07]} 31. g3 {[%clk 0:00:12]}  Ke7 {[%clk 0:01:56]} 32. Rd2 {[%clk 0:00:12]}  Rc1 {[%clk 0:01:54]} 33. Rc2 {[%clk 0:00:12]}  Re1+ {[%clk 0:01:43]} 34. Kf2 {[%clk 0:00:12]}  Rf1+ {[%clk 0:01:39]} 35. Kg2 {[%clk 0:00:11]}  Bd3 {[%clk 0:01:19]} 36. Nc6+ {[%clk 0:00:11]}  Kd6 {[%clk 0:01:19]} 37. Nxb4 {[%clk 0:00:12]}  Bb5 {[%clk 0:00:57]} 38. a4 {[%clk 0:00:11]}  Bxa4 {[%clk 0:00:14]} 39. Kxf1 {[%clk 0:00:12]}  Bxc2 {[%clk 0:00:15]} 40. Nxc2 {[%clk 0:00:11]}  Kc5 {[%clk 0:00:16]} 41. Ke2 {[%clk 0:00:11]}  Kc4 {[%clk 0:00:17]} 42. Kd2 {[%clk 0:00:11]}  e5 {[%clk 0:00:17]} 43. fxe5 {[%clk 0:00:10]}  fxe5 {[%clk 0:00:18]} 44. Ne3+ {[%clk 0:00:10]}  Kd4 {[%clk 0:00:18]} 45. b4 {[%clk 0:00:10]}  e4 {[%clk 0:00:19]} 46. Nxd5 {[%clk 0:00:09]}  Kxd5 {[%clk 0:00:19]} 47. Ke3 {[%clk 0:00:10]}  h5 {[%clk 0:00:18]} 48. h4 {[%clk 0:00:10]}  Ke5 {[%clk 0:00:19]} 49. b5 {[%clk 0:00:10]}  Kf5 {[%clk 0:00:20]} 50. b6 {[%clk 0:00:11]}  Kg4 {[%clk 0:00:20]} 51. b7 {[%clk 0:00:11]}  Kxg3 {[%clk 0:00:21]} 52. b8=Q+ {[%clk 0:00:12]}  Kxh4 {[%clk 0:00:22]} 53. Qg8 {[%clk 0:00:12]}  Kh3 {[%clk 0:00:22]} 54. Kxe4 {[%clk 0:00:12]}  Kh4 {[%clk 0:00:23]} 55. Kf3 {[%clk 0:00:12]}  Kh3 {[%clk 0:00:24]} 56. Qg3# {[%clk 0:00:12]} 1-0


[Site "https://www.chess.com"]

[Event "Titled Tuesday Blitz March 28 Late 2023"]
[White "KSho99"]
[Black "Mazurkiewicz, Michal"]
[BlackFideId "1124943"]
[WhiteElo "2147"]
[BlackElo "2054"]
[Result "0-1"]
[Round "02"]
[TimeControl "180+2"]
[Date "2023.03.28"]
[WhiteClock "0:00:05"]
[BlackClock "0:00:10"]

1. e4 {[%clk 0:03:00]}  d6 {[%clk 0:02:59]} 2. d4 {[%clk 0:03:00]}  Nf6 {[%clk 0:03:00]} 3. Nc3 {[%clk 0:03:01]}  c6 {[%clk 0:03:01]} 4. f4 {[%clk 0:03:00]}  Qb6 {[%clk 0:03:01]} 5. Nf3 {[%clk 0:02:44]}  Bg4 {[%clk 0:03:00]} 6. Be2 {[%clk 0:02:41]}  e6 {[%clk 0:02:59]} 7. a3 {[%clk 0:02:33]}  d5 {[%clk 0:02:58]} 8. e5 {[%clk 0:02:31]}  Nfd7 {[%clk 0:02:55]} 9. Be3 {[%clk 0:02:18]}  c5 {[%clk 0:02:53]} 10. Na4 {[%clk 0:01:59]}  Qa5+ {[%clk 0:02:51]} 11. c3 {[%clk 0:01:59]}  cxd4 {[%clk 0:02:42]} 12. b4 {[%clk 0:01:55]}  Qc7 {[%clk 0:02:37]} 13. cxd4 {[%clk 0:01:36]}  b6 {[%clk 0:02:24]} 14. Rc1 {[%clk 0:01:34]}  Qb7 {[%clk 0:02:24]} 15. Qc2 {[%clk 0:01:21]}  Be7 {[%clk 0:02:22]} 16. Qc8+ {[%clk 0:01:08]}  Qxc8 {[%clk 0:02:21]} 17. Rxc8+ {[%clk 0:01:08]}  Bd8 {[%clk 0:02:22]} 18. Ba6 {[%clk 0:00:45]}  b5 {[%clk 0:00:52]} 19. Bxb5 {[%clk 0:00:44]}  a6 {[%clk 0:00:52]} 20. Bc6 {[%clk 0:00:42]}  Nxc6 {[%clk 0:00:44]} 21. Rxa8 {[%clk 0:00:41]}  Ndb8 {[%clk 0:00:40]} 22. Kf2 {[%clk 0:00:33]}  Kd7 {[%clk 0:00:37]} 23. Nc5+ {[%clk 0:00:29]}  Kc8 {[%clk 0:00:37]} 24. Rc1 {[%clk 0:00:21]}  Bb6 {[%clk 0:00:23]} 25. Ng5 {[%clk 0:00:20]}  Bxc5 {[%clk 0:00:20]} 26. Rxc5 {[%clk 0:00:20]}  Kb7 {[%clk 0:00:18]} 27. Nxf7 {[%clk 0:00:20]}  Rf8 {[%clk 0:00:18]} 28. Rxb8+ {[%clk 0:00:14]}  Nxb8 {[%clk 0:00:17]} 29. Nd6+ {[%clk 0:00:13]}  Kb6 {[%clk 0:00:17]} 30. h3 {[%clk 0:00:08]}  Bf5 {[%clk 0:00:13]} 31. g4 {[%clk 0:00:07]}  Bd3 {[%clk 0:00:12]} 32. Ke1 {[%clk 0:00:07]}  Nd7 {[%clk 0:00:11]} 33. Rc3 {[%clk 0:00:05]}  Bb5 {[%clk 0:00:11]} 34. Kd2 {[%clk 0:00:05]}  g5 {[%clk 0:00:11]} 35. f5 {[%clk 0:00:05]}  exf5 {[%clk 0:00:10]} 36. gxf5 {[%clk 0:00:06]}  Ba4 {[%clk 0:00:08]} 37. Bxg5 {[%clk 0:00:06]}  Rg8 {[%clk 0:00:08]} 38. h4 {[%clk 0:00:05]}  h6 {[%clk 0:00:09]} 39. Be3 {[%clk 0:00:04]}  Rg2+ {[%clk 0:00:09]} 40. Ke1 {[%clk 0:00:04]}  Rh2 {[%clk 0:00:08]} 41. e6 {[%clk 0:00:05]}  Nf6 {[%clk 0:00:08]} 42. Bxh6 {[%clk 0:00:04]}  Rh1+ {[%clk 0:00:08]} 43. Ke2 {[%clk 0:00:04]}  Rh2+ {[%clk 0:00:07]} 44. Kd3 {[%clk 0:00:03]}  Rh3+ {[%clk 0:00:07]} 45. Kd2 {[%clk 0:00:02]}  Rh2+ {[%clk 0:00:08]} 46. Ke1 {[%clk 0:00:03]}  Rh1+ {[%clk 0:00:08]} 47. Kf2 {[%clk 0:00:03]}  Ng4+ {[%clk 0:00:08]} 48. Kg2 {[%clk 0:00:03]}  Rxh4 {[%clk 0:00:08]} 49. Bg5 {[%clk 0:00:02]}  Rh5 {[%clk 0:00:08]} 50. e7 {[%clk 0:00:03]}  Rxg5 {[%clk 0:00:07]} 51. e8=Q {[%clk 0:00:03]}  Nf6+ {[%clk 0:00:07]} 52. Kf3 {[%clk 0:00:02]}  Nxe8 {[%clk 0:00:08]} 53. Nxe8 {[%clk 0:00:03]}  Bxe8 {[%clk 0:00:09]} 54. Rc5 {[%clk 0:00:03]}  Rxf5+ {[%clk 0:00:09]} 55. Ke3 {[%clk 0:00:04]}  Bc6 {[%clk 0:00:09]} 56. Kd3 {[%clk 0:00:04]}  Rf3+ {[%clk 0:00:10]} 57. Kc2 {[%clk 0:00:05]}  Rf4 {[%clk 0:00:10]} 0-1


[Site "https://www.chess.com"]

[Event "Titled Tuesday Blitz March 28 Late 2023"]
[White "Hartikainen, Jarmo"]
[Black "Yeritsyan, Hayk"]
[WhiteFideId "503134"]
[BlackFideId "13307320"]
[WhiteElo "2144"]
[BlackElo "2439"]
[Result "0-1"]
[Round "02"]
[TimeControl "180+2"]
[Date "2023.03.28"]
[WhiteClock "0:00:16"]
[BlackClock "0:00:53"]

1. e4 {[%clk 0:03:00]}  c6 {[%clk 0:02:56]} 2. d4 {[%clk 0:03:00]}  d5 {[%clk 0:02:57]} 3. Nc3 {[%clk 0:03:00]}  dxe4 {[%clk 0:02:57]} 4. Nxe4 {[%clk 0:03:01]}  Nd7 {[%clk 0:02:57]} 5. Ng5 {[%clk 0:03:01]}  h6 {[%clk 0:02:57]} 6. Ne6 {[%clk 0:02:58]}  Qb6 {[%clk 0:02:57]} 7. Nxf8 {[%clk 0:02:51]}  Nxf8 {[%clk 0:02:58]} 8. Nf3 {[%clk 0:02:49]}  Bf5 {[%clk 0:02:53]} 9. Bd3 {[%clk 0:02:42]}  Bxd3 {[%clk 0:02:52]} 10. Qxd3 {[%clk 0:02:43]}  Nf6 {[%clk 0:02:52]} 11. O-O {[%clk 0:02:42]}  Ng6 {[%clk 0:02:53]} 12. c4 {[%clk 0:02:35]}  O-O {[%clk 0:02:51]} 13. b3 {[%clk 0:02:27]}  e6 {[%clk 0:02:52]} 14. Bb2 {[%clk 0:02:26]}  Rad8 {[%clk 0:02:49]} 15. Qc3 {[%clk 0:01:51]}  Ne4 {[%clk 0:02:46]} 16. Qc2 {[%clk 0:01:48]}  Nf6 {[%clk 0:02:46]} 17. Rfe1 {[%clk 0:01:42]}  Rfe8 {[%clk 0:02:46]} 18. Rad1 {[%clk 0:01:40]}  Qc7 {[%clk 0:02:45]} 19. Ne5 {[%clk 0:01:32]}  Nxe5 {[%clk 0:02:44]} 20. dxe5 {[%clk 0:01:19]}  Nd7 {[%clk 0:02:41]} 21. f4 {[%clk 0:01:16]}  Nf8 {[%clk 0:02:40]} 22. Qc3 {[%clk 0:01:00]}  Rxd1 {[%clk 0:02:37]} 23. Rxd1 {[%clk 0:01:00]}  Rd8 {[%clk 0:02:38]} 24. Rd6 {[%clk 0:01:00]}  c5 {[%clk 0:02:11]} 25. Qd2 {[%clk 0:00:46]}  Rd7 {[%clk 0:02:06]} 26. g4 {[%clk 0:00:44]}  Rxd6 {[%clk 0:02:00]} 27. exd6 {[%clk 0:00:43]}  Qc6 {[%clk 0:02:00]} 28. f5 {[%clk 0:00:38]}  Qf3 {[%clk 0:01:38]} 29. d7 {[%clk 0:00:31]}  Qxg4+ {[%clk 0:01:37]} 30. Kh1 {[%clk 0:00:26]}  Qe4+ {[%clk 0:01:24]} 31. Kg1 {[%clk 0:00:26]}  Nxd7 {[%clk 0:01:20]} 32. Qxd7 {[%clk 0:00:24]}  Qb1+ {[%clk 0:01:19]} 33. Kg2 {[%clk 0:00:21]}  Qxb2+ {[%clk 0:01:20]} 34. Kg3 {[%clk 0:00:22]}  Qe5+ {[%clk 0:01:17]} 35. Kg2 {[%clk 0:00:22]}  Qe4+ {[%clk 0:01:14]} 36. Kg3 {[%clk 0:00:21]}  exf5 {[%clk 0:01:13]} 37. Qc8+ {[%clk 0:00:20]}  Kh7 {[%clk 0:01:13]} 38. Qxc5 {[%clk 0:00:20]}  b6 {[%clk 0:01:02]} 39. Qc7 {[%clk 0:00:19]}  Qe3+ {[%clk 0:01:00]} 40. Kg2 {[%clk 0:00:19]}  f4 {[%clk 0:00:56]} 41. Qb7 {[%clk 0:00:16]}  Qe2+ {[%clk 0:00:55]} 42. Kg1 {[%clk 0:00:16]}  f3 {[%clk 0:00:53]} 0-1


[Site "https://www.chess.com"]

[Event "Titled Tuesday Blitz March 28 Late 2023"]
[White "Ozdemir, Serhan Berat"]
[Black "Tsukerman, Julia"]
[WhiteFideId "6374611"]
[BlackFideId "2621649"]
[WhiteElo "2015"]
[BlackElo "1667"]
[Result "1-0"]
[Round "02"]
[TimeControl "180+2"]
[Date "2023.03.28"]
[WhiteClock "0:00:02"]
[BlackClock "0:00:01"]

1. e4 {[%clk 0:03:00]}  c5 {[%clk 0:02:58]} 2. Nf3 {[%clk 0:02:59]}  d6 {[%clk 0:02:58]} 3. d4 {[%clk 0:02:56]}  cxd4 {[%clk 0:02:58]} 4. Nxd4 {[%clk 0:02:57]}  Nf6 {[%clk 0:02:58]} 5. Nc3 {[%clk 0:02:57]}  a6 {[%clk 0:02:59]} 6. Bg5 {[%clk 0:02:55]}  e6 {[%clk 0:02:58]} 7. f4 {[%clk 0:02:51]}  Be7 {[%clk 0:02:58]} 8. Qf3 {[%clk 0:02:49]}  Nbd7 {[%clk 0:02:58]} 9. O-O-O {[%clk 0:02:44]}  Qc7 {[%clk 0:02:53]} 10. g4 {[%clk 0:02:42]}  b5 {[%clk 0:02:31]} 11. a3 {[%clk 0:02:36]}  Bb7 {[%clk 0:02:19]} 12. Bxf6 {[%clk 0:02:34]}  Nxf6 {[%clk 0:02:18]} 13. g5 {[%clk 0:02:34]}  Nd7 {[%clk 0:02:15]} 14. h4 {[%clk 0:02:32]}  Nc5 {[%clk 0:02:00]} 15. h5 {[%clk 0:02:00]}  Rc8 {[%clk 0:01:49]} 16. Bh3 {[%clk 0:01:43]}  Qa5 {[%clk 0:01:02]} 17. Kb1 {[%clk 0:01:21]}  Qb6 {[%clk 0:00:49]} 18. g6 {[%clk 0:01:17]}  Bf6 {[%clk 0:00:35]} 19. gxf7+ {[%clk 0:01:10]}  Kxf7 {[%clk 0:00:30]} 20. Rhg1 {[%clk 0:00:41]}  Rhe8 {[%clk 0:00:26]} 21. Qe2 {[%clk 0:00:34]}  Re7 {[%clk 0:00:23]} 22. e5 {[%clk 0:00:34]}  dxe5 {[%clk 0:00:19]} 23. fxe5 {[%clk 0:00:35]}  Bh4 {[%clk 0:00:17]} 24. Qg4 {[%clk 0:00:24]}  Kg8 {[%clk 0:00:14]} 25. Qxh4 {[%clk 0:00:22]}  Rce8 {[%clk 0:00:14]} 26. h6 {[%clk 0:00:20]}  g6 {[%clk 0:00:13]} 27. Rgf1 {[%clk 0:00:13]}  Na4 {[%clk 0:00:10]} 28. Nxa4 {[%clk 0:00:12]}  bxa4 {[%clk 0:00:10]} 29. Qf6 {[%clk 0:00:11]}  Bd5 {[%clk 0:00:09]} 30. Nf5 {[%clk 0:00:07]}  Rb7 {[%clk 0:00:07]} 31. Qg7+ {[%clk 0:00:02]}  Rxg7 {[%clk 0:00:06]} 32. Nxg7 {[%clk 0:00:03]}  Rb8 {[%clk 0:00:05]} 33. b4 {[%clk 0:00:02]}  axb3 {[%clk 0:00:05]} 34. c4 {[%clk 0:00:02]}  b2 {[%clk 0:00:03]} 35. Rf4 {[%clk 0:00:02]}  Qb3 {[%clk 0:00:03]} 36. Bxe6+ {[%clk 0:00:01]}  Bxe6 {[%clk 0:00:01]} 37. Rdf1 {[%clk 0:00:02]} 1-0


[Site "https://www.chess.com"]

[Event "Titled Tuesday Blitz March 28 Late 2023"]
[White "Djordjevic, Dejan N"]
[Black "Silva Lucena, Cristian"]
[WhiteFideId "913316"]
[BlackFideId "2232588"]
[WhiteElo "2261"]
[BlackElo "2223"]
[Result "0-1"]
[Round "02"]
[TimeControl "180+2"]
[Date "2023.03.28"]
[WhiteClock "0:00:11"]
[BlackClock "0:00:24"]

1. e4 {[%clk 0:03:00]}  c5 {[%clk 0:02:57]} 2. Nc3 {[%clk 0:03:00]}  e6 {[%clk 0:02:57]} 3. g3 {[%clk 0:02:58]}  Nc6 {[%clk 0:02:56]} 4. Bg2 {[%clk 0:02:59]}  d6 {[%clk 0:02:56]} 5. Nge2 {[%clk 0:02:59]}  Be7 {[%clk 0:02:56]} 6. O-O {[%clk 0:02:59]}  h5 {[%clk 0:02:56]} 7. h3 {[%clk 0:02:59]}  Nf6 {[%clk 0:02:56]} 8. d4 {[%clk 0:02:58]}  cxd4 {[%clk 0:02:55]} 9. Nxd4 {[%clk 0:02:59]}  a6 {[%clk 0:02:55]} 10. Be3 {[%clk 0:02:58]}  Ne5 {[%clk 0:02:53]} 11. b3 {[%clk 0:02:57]}  Qc7 {[%clk 0:02:52]} 12. Nce2 {[%clk 0:02:55]}  Bd7 {[%clk 0:02:46]} 13. c4 {[%clk 0:02:55]}  b5 {[%clk 0:02:44]} 14. f4 {[%clk 0:02:52]}  Neg4 {[%clk 0:02:33]} 15. hxg4 {[%clk 0:02:51]}  Nxg4 {[%clk 0:02:33]} 16. Bd2 {[%clk 0:02:42]}  bxc4 {[%clk 0:02:33]} 17. Rc1 {[%clk 0:02:38]}  Qa7 {[%clk 0:02:29]} 18. e5 {[%clk 0:02:31]}  dxe5 {[%clk 0:02:02]} 19. fxe5 {[%clk 0:02:31]}  Rd8 {[%clk 0:02:01]} 20. Rf4 {[%clk 0:02:06]}  g5 {[%clk 0:01:55]} 21. Rxg4 {[%clk 0:01:52]}  hxg4 {[%clk 0:01:55]} 22. Kf1 {[%clk 0:01:51]}  Qc5 {[%clk 0:01:44]} 23. Rxc4 {[%clk 0:01:34]}  Qxe5 {[%clk 0:01:43]} 24. Qc1 {[%clk 0:01:27]}  Qf6+ {[%clk 0:01:33]} 25. Ke1 {[%clk 0:01:21]}  Rh2 {[%clk 0:01:31]} 26. Be4 {[%clk 0:01:02]}  Qf2+ {[%clk 0:01:23]} 27. Kd1 {[%clk 0:01:01]}  f5 {[%clk 0:01:22]} 28. Bb7 {[%clk 0:00:57]}  e5 {[%clk 0:01:11]} 29. Be1 {[%clk 0:00:33]}  Qf1 {[%clk 0:01:00]} 30. Qe3 {[%clk 0:00:17]}  exd4 {[%clk 0:00:48]} 31. Rxd4 {[%clk 0:00:16]}  Qxe2+ {[%clk 0:00:37]} 32. Qxe2 {[%clk 0:00:16]}  Rxe2 {[%clk 0:00:38]} 33. Kxe2 {[%clk 0:00:15]}  Bb5+ {[%clk 0:00:38]} 34. Ke3 {[%clk 0:00:14]}  Bc5 {[%clk 0:00:39]} 35. Bc3 {[%clk 0:00:14]}  f4+ {[%clk 0:00:35]} 36. gxf4 {[%clk 0:00:14]}  gxf4+ {[%clk 0:00:36]} 37. Ke4 {[%clk 0:00:15]}  Bxd4 {[%clk 0:00:34]} 38. Bxd4 {[%clk 0:00:15]}  f3 {[%clk 0:00:28]} 39. a4 {[%clk 0:00:11]}  Rxd4+ {[%clk 0:00:25]} 40. Kxd4 {[%clk 0:00:11]}  f2 {[%clk 0:00:25]} 41. Bg2 {[%clk 0:00:11]}  f1=Q {[%clk 0:00:24]} 0-1


[Site "https://www.chess.com"]

[Event "Titled Tuesday Blitz March 28 Late 2023"]
[White "Gonzalez, Francisco Silva"]
[Black "Eliteplayer3"]
[WhiteFideId "1512285"]
[WhiteElo "2074"]
[BlackElo "2125"]
[Result "1-0"]
[Round "02"]
[TimeControl "180+2"]
[Date "2023.03.28"]
[WhiteClock "0:00:43"]
[BlackClock "0:01:09"]

1. d4 {[%clk 0:03:00]}  e6 {[%clk 0:02:57]} 2. c4 {[%clk 0:03:01]}  f5 {[%clk 0:02:57]} 3. e3 {[%clk 0:02:58]}  Nf6 {[%clk 0:02:57]} 4. Bd3 {[%clk 0:02:56]}  Be7 {[%clk 0:02:57]} 5. Nc3 {[%clk 0:02:55]}  O-O {[%clk 0:02:57]} 6. Nge2 {[%clk 0:02:56]}  d6 {[%clk 0:02:57]} 7. Qc2 {[%clk 0:02:55]}  b6 {[%clk 0:02:56]} 8. b3 {[%clk 0:02:52]}  Bb7 {[%clk 0:02:55]} 9. f3 {[%clk 0:02:52]}  Qe8 {[%clk 0:02:54]} 10. O-O {[%clk 0:02:51]}  Nbd7 {[%clk 0:02:53]} 11. Bd2 {[%clk 0:02:50]}  e5 {[%clk 0:02:53]} 12. Bxf5 {[%clk 0:02:49]}  Qh5 {[%clk 0:02:46]} 13. Ng3 {[%clk 0:02:44]}  Qh4 {[%clk 0:02:42]} 14. Nb5 {[%clk 0:02:35]}  c6 {[%clk 0:02:37]} 15. Be6+ {[%clk 0:02:34]}  Kh8 {[%clk 0:02:36]} 16. Nf5 {[%clk 0:02:34]}  Qh5 {[%clk 0:02:29]} 17. Nbxd6 {[%clk 0:02:26]}  Ba6 {[%clk 0:02:17]} 18. Ng3 {[%clk 0:02:21]}  Qg6 {[%clk 0:02:12]} 19. Bf5 {[%clk 0:02:12]}  Qg5 {[%clk 0:02:07]} 20. e4 {[%clk 0:02:04]}  Qh4 {[%clk 0:02:03]} 21. Bxd7 {[%clk 0:01:59]}  Nxd7 {[%clk 0:02:04]} 22. Ndf5 {[%clk 0:01:59]}  Qf6 {[%clk 0:02:03]} 23. Nxe7 {[%clk 0:01:54]}  Qxe7 {[%clk 0:02:04]} 24. Bc3 {[%clk 0:01:48]}  Rad8 {[%clk 0:02:03]} 25. Nf5 {[%clk 0:01:46]}  Qe6 {[%clk 0:02:02]} 26. d5 {[%clk 0:01:39]}  cxd5 {[%clk 0:02:02]} 27. cxd5 {[%clk 0:01:40]}  Qg6 {[%clk 0:01:59]} 28. Bb4 {[%clk 0:01:34]}  Bxf1 {[%clk 0:01:49]} 29. Bxf8 {[%clk 0:01:33]}  Rxf8 {[%clk 0:01:47]} 30. Rxf1 {[%clk 0:01:31]}  Nc5 {[%clk 0:01:46]} 31. b4 {[%clk 0:01:32]}  Nb7 {[%clk 0:01:42]} 32. Qc6 {[%clk 0:01:30]}  Qf7 {[%clk 0:01:37]} 33. Rc1 {[%clk 0:01:24]}  g6 {[%clk 0:01:34]} 34. Nh6 {[%clk 0:01:22]}  Qf4 {[%clk 0:01:33]} 35. Rf1 {[%clk 0:01:10]}  Nd8 {[%clk 0:01:29]} 36. Qc1 {[%clk 0:01:05]}  Qh4 {[%clk 0:01:25]} 37. Ng4 {[%clk 0:01:03]}  Nf7 {[%clk 0:01:21]} 38. g3 {[%clk 0:01:00]}  Qg5 {[%clk 0:01:20]} 39. Qxg5 {[%clk 0:00:56]}  Nxg5 {[%clk 0:01:21]} 40. Nxe5 {[%clk 0:00:55]}  Re8 {[%clk 0:01:17]} 41. Nc6 {[%clk 0:00:52]}  Rf8 {[%clk 0:01:17]} 42. Kg2 {[%clk 0:00:50]}  a5 {[%clk 0:01:14]} 43. h4 {[%clk 0:00:46]}  Nf7 {[%clk 0:01:12]} 44. bxa5 {[%clk 0:00:45]}  bxa5 {[%clk 0:01:11]} 45. e5 {[%clk 0:00:44]}  Re8 {[%clk 0:01:08]} 46. f4 {[%clk 0:00:44]}  Nd6 {[%clk 0:01:09]} 47. exd6 {[%clk 0:00:43]} 1-0


[Site "https://www.chess.com"]

[Event "Titled Tuesday Blitz March 28 Late 2023"]
[White "Dzida, Kamil"]
[Black "Dominguez Rincon, Miller Duvan"]
[WhiteFideId "21828652"]
[BlackFideId "4406583"]
[WhiteElo "2139"]
[BlackElo "2005"]
[Result "1-0"]
[Round "02"]
[TimeControl "180+2"]
[Date "2023.03.28"]
[WhiteClock "0:02:44"]
[BlackClock "0:00:51"]

1. e4 {[%clk 0:02:52]}  e5 {[%clk 0:02:59]} 2. Nf3 {[%clk 0:02:48]}  Nc6 {[%clk 0:02:57]} 3. Bb5 {[%clk 0:02:48]}  a6 {[%clk 0:02:57]} 4. Bxc6 {[%clk 0:02:47]}  dxc6 {[%clk 0:02:57]} 5. O-O {[%clk 0:02:48]}  Qf6 {[%clk 0:02:56]} 6. d4 {[%clk 0:02:45]}  exd4 {[%clk 0:02:54]} 7. Bg5 {[%clk 0:02:45]}  Qd6 {[%clk 0:02:35]} 8. e5 {[%clk 0:02:45]}  Qd5 {[%clk 0:02:04]} 9. Nxd4 {[%clk 0:02:45]}  c5 {[%clk 0:01:58]} 10. Nb5 {[%clk 0:02:45]}  Qxd1 {[%clk 0:01:50]} 11. Rxd1 {[%clk 0:02:46]}  axb5 {[%clk 0:00:51]} 12. Rd8# {[%clk 0:02:44]} 1-0


[Site "https://www.chess.com"]

[Event "Titled Tuesday Blitz March 28 Late 2023"]
[White "Przybylski, Wojciech"]
[Black "Narva, Triin"]
[WhiteFideId "1117599"]
[BlackFideId "4502680"]
[WhiteElo "2222"]
[BlackElo "1944"]
[Result "1-0"]
[Round "02"]
[TimeControl "180+2"]
[Date "2023.03.28"]
[WhiteClock "0:01:07"]
[BlackClock "0:00:01"]

1. d4 {[%clk 0:03:00]}  g6 {[%clk 0:02:58]} 2. e4 {[%clk 0:02:59]}  Bg7 {[%clk 0:02:57]} 3. Nc3 {[%clk 0:02:59]}  d6 {[%clk 0:02:58]} 4. Nf3 {[%clk 0:02:58]}  Nd7 {[%clk 0:02:50]} 5. Bc4 {[%clk 0:02:57]}  Nb6 {[%clk 0:02:42]} 6. Bb3 {[%clk 0:02:54]}  Nf6 {[%clk 0:02:42]} 7. a4 {[%clk 0:02:54]}  a5 {[%clk 0:02:40]} 8. O-O {[%clk 0:02:53]}  O-O {[%clk 0:02:39]} 9. h3 {[%clk 0:02:52]}  c6 {[%clk 0:02:13]} 10. Qe2 {[%clk 0:02:49]}  Qc7 {[%clk 0:02:01]} 11. Bf4 {[%clk 0:02:47]}  Nh5 {[%clk 0:02:01]} 12. Bh2 {[%clk 0:02:47]}  e5 {[%clk 0:01:52]} 13. Rad1 {[%clk 0:02:41]}  h6 {[%clk 0:01:02]} 14. dxe5 {[%clk 0:02:31]}  dxe5 {[%clk 0:01:02]} 15. Nh4 {[%clk 0:02:30]}  Kh7 {[%clk 0:00:54]} 16. Qe3 {[%clk 0:02:19]}  Bd7 {[%clk 0:00:37]} 17. Qc5 {[%clk 0:02:15]}  Nc8 {[%clk 0:00:13]} 18. Nf3 {[%clk 0:01:59]}  b6 {[%clk 0:00:13]} 19. Qe3 {[%clk 0:01:53]}  Nf4 {[%clk 0:00:09]} 20. Rd2 {[%clk 0:01:53]}  Ne7 {[%clk 0:00:05]} 21. Rfd1 {[%clk 0:01:51]}  Rad8 {[%clk 0:00:03]} 22. Bc4 {[%clk 0:01:49]}  Be6 {[%clk 0:00:02]} 23. Bf1 {[%clk 0:01:47]}  Rxd2 {[%clk 0:00:01]} 24. Qxd2 {[%clk 0:01:47]}  Nc8 {[%clk 0:00:02]} 25. b3 {[%clk 0:01:36]}  Bf6 {[%clk 0:00:02]} 26. Qe3 {[%clk 0:01:12]}  Nd6 {[%clk 0:00:01]} 27. Bxf4 {[%clk 0:01:06]}  exf4 {[%clk 0:00:02]} 28. Qxf4 {[%clk 0:01:07]}  Bxc3 {[%clk 0:00:02]} 29. Qxd6 {[%clk 0:01:07]}  Qxd6 {[%clk 0:00:01]} 30. Rxd6 {[%clk 0:01:07]} 1-0


[Site "https://www.chess.com"]

[Event "Titled Tuesday Blitz March 28 Late 2023"]
[White "Benevides Demasi, Joao Otavio"]
[Black "Senft, Sean"]
[WhiteFideId "30916224"]
[BlackFideId "2044960"]
[WhiteElo "2105"]
[BlackElo "1989"]
[Result "1-0"]
[Round "02"]
[TimeControl "180+2"]
[Date "2023.03.28"]
[WhiteClock "0:02:23"]
[BlackClock "0:00:02"]

1. Nf3 {[%clk 0:03:00]}  d5 {[%clk 0:02:58]} 2. d3 {[%clk 0:03:00]}  c6 {[%clk 0:02:59]} 3. g3 {[%clk 0:03:01]}  Nf6 {[%clk 0:02:59]} 4. Bg2 {[%clk 0:03:02]}  Bg4 {[%clk 0:02:59]} 5. O-O {[%clk 0:03:02]}  Bxf3 {[%clk 0:03:00]} 6. Bxf3 {[%clk 0:03:02]}  e6 {[%clk 0:03:00]} 7. c4 {[%clk 0:03:02]}  Nbd7 {[%clk 0:03:01]} 8. cxd5 {[%clk 0:03:02]}  cxd5 {[%clk 0:03:01]} 9. Nc3 {[%clk 0:03:02]}  Be7 {[%clk 0:03:01]} 10. e4 {[%clk 0:03:03]}  dxe4 {[%clk 0:03:01]} 11. dxe4 {[%clk 0:03:03]}  O-O {[%clk 0:03:02]} 12. e5 {[%clk 0:02:58]}  Ne8 {[%clk 0:03:00]} 13. Bxb7 {[%clk 0:02:56]}  Rb8 {[%clk 0:03:00]} 14. Bg2 {[%clk 0:02:56]}  Nxe5 {[%clk 0:02:54]} 15. Bf4 {[%clk 0:02:55]}  Bf6 {[%clk 0:02:48]} 16. Ne4 {[%clk 0:02:52]}  Qxd1 {[%clk 0:02:46]} 17. Nxf6+ {[%clk 0:02:47]}  gxf6 {[%clk 0:02:46]} 18. Rfxd1 {[%clk 0:02:46]}  Rxb2 {[%clk 0:02:47]} 19. Bxe5 {[%clk 0:02:40]}  fxe5 {[%clk 0:02:47]} 20. Rd7 {[%clk 0:02:41]}  Nf6 {[%clk 0:02:31]} 21. Rxa7 {[%clk 0:02:40]}  Rd8 {[%clk 0:02:31]} 22. Ra8 {[%clk 0:02:38]}  Rxa8 {[%clk 0:02:28]} 23. Bxa8 {[%clk 0:02:37]}  Ng4 {[%clk 0:02:25]} 24. a4 {[%clk 0:02:37]}  Nxf2 {[%clk 0:00:34]} 25. a5 {[%clk 0:02:34]}  Nh3+ {[%clk 0:00:19]} 26. Kf1 {[%clk 0:02:34]}  Rxh2 {[%clk 0:00:18]} 27. a6 {[%clk 0:02:33]}  Rf2+ {[%clk 0:00:04]} 28. Ke1 {[%clk 0:02:32]}  Rb2 {[%clk 0:00:04]} 29. a7 {[%clk 0:02:31]}  Nf2 {[%clk 0:00:04]} 30. Bc6 {[%clk 0:02:23]}  Nd3+ {[%clk 0:00:02]} 31. Kf1 {[%clk 0:02:23]} 1-0


[Site "https://www.chess.com"]